fUST/lending_fUST_20250817
["ID","MTS","AMOUNT","RATE_DAILY","PERIOD"]
[379935344,1755443439384,-480.0,0.00019178,2]
[379935345,1755443439394,-480.0,0.00019178,2]
[379935346,1755443439403,-480.0,0.00019178,2]
[379935347,1755443439413,-480.0,0.00019178,2]
[379935348,1755443439422,-480.0,0.00019178,2]
[379935349,1755443439431,-480.0,0.00019178,2]
[379935350,1755443439441,-480.0,0.00019178,2]
[379935351,1755443439450,-480.0,0.00019178,2]
[379935352,1755443439460,-480.0,0.00019178,2]
[379935353,1755443439469,-480.0,0.00019178,2]
[379935354,1755443439479,-480.0,0.00019178,2]
[379935355,1755443439488,-460.0,0.00019178,2]
[379935356,1755443439499,-480.0,0.00019178,2]
[379935357,1755443439509,-480.0,0.00019178,2]
[379935358,1755443439518,-323.44115158,0.00019178,2]
[379935359,1755443439528,-480.0,0.00019178,2]
[379935360,1755443439537,-1853.11,0.00019178,2]
[379935361,1755443439547,-729.75,0.00019178,2]
[379935362,1755443439556,-254.89733024,0.00019178,2]
[379935363,1755443439566,-441.16726403,0.00019178,2]
[379935364,1755443439575,-480.0,0.00019178,2]
[379935365,1755443439585,-480.0,0.00019178,2]
[379935366,1755443439594,-480.0,0.00019178,2]
[379935367,1755443439604,-516.71,0.00019178,2]
[379935368,1755443439613,-480.0,0.00019178,2]
[379935370,1755443439623,-402.99583468,0.00019178,2]
[379935372,1755443439632,-519.01047851,0.00019178,2]
[379935374,1755443439641,-359.34405251,0.00019178,2]
[379935376,1755443439650,-480.0,0.00019178,2]
[379935378,1755443439660,-480.0,0.00019178,2]
[379935380,1755443439669,-480.0,0.00019178,2]
[379935382,1755443439679,-480.0,0.00019178,2]
[379935384,1755443439689,-480.0,0.00019178,2]
[379935386,1755443439699,-365.84427878,0.00019178,2]
[379935388,1755443439708,-480.0,0.00019178,2]
[379935389,1755443439718,-480.0,0.00019178,2]
[379935391,1755443439727,-480.0,0.00019178,2]
[379935393,1755443439737,-480.0,0.00019178,2]
[379935394,1755443439746,-480.0,0.00019178,2]
[379935396,1755443439756,-480.0,0.00019178,2]
[379935398,1755443439765,-696.37,0.00019178,2]
[379935400,1755443439774,-480.0,0.00019178,2]
[379935402,1755443439784,-480.0,0.00019178,2]
[379935404,1755443439794,-480.0,0.00019178,2]
[379935406,1755443439803,-480.0,0.00019178,2]
[379935408,1755443439813,-480.0,0.00019178,2]
[379935410,1755443439823,-2087.54,0.00019178,2]
[379935412,1755443439832,-382.97208288,0.00019178,2]
[379935414,1755443439841,-500.0,0.00019178,2]
[379935416,1755443439852,-581.12333982,0.00019178,2]
[379935418,1755443439862,-480.0,0.00019178,2]
[379935420,1755443439871,-480.0,0.00019178,2]
[379935422,1755443439880,-480.0,0.00019178,2]
[379935424,1755443439889,-985.04,0.00019178,2]
[379935426,1755443439899,-480.0,0.00019178,2]
[379935427,1755443439908,-480.0,0.00019178,2]
[379935429,1755443439917,-480.0,0.00019178,2]
[379935431,1755443439927,-480.0,0.00019178,2]
[379935433,1755443439936,-460.0,0.00019178,2]
[379935435,1755443439945,-480.0,0.00019178,2]
[379935437,1755443439955,-480.0,0.00019178,2]
[379935439,1755443439965,-480.0,0.00019178,2]
[379935441,1755443439975,-480.0,0.00019178,2]
[379935443,1755443439984,-460.0,0.00019178,2]
[379935445,1755443439993,-480.0,0.00019178,2]
[379935447,1755443440003,-480.0,0.00019178,2]
[379935449,1755443440012,-500.0,0.00019178,2]
[379935451,1755443440022,-500.0,0.00019178,2]
[379935453,1755443440032,-500.0,0.00019178,2]
[379935455,1755443440042,-208.2,0.00019178,2]
[379935457,1755443440051,-480.0,0.00019178,2]
[379935459,1755443440062,-480.0,0.00019178,2]
[379935461,1755443440074,-480.0,0.00019178,2]
[379935463,1755443440083,-480.0,0.00019178,2]
[379935465,1755443440093,-480.0,0.00019178,2]
[379935467,1755443440103,-480.0,0.00019178,2]
[379935469,1755443440112,-480.0,0.00019178,2]
[379935471,1755443440122,-460.0,0.00019178,2]
[379935473,1755443440131,-480.0,0.00019178,2]
[379935475,1755443440141,-480.0,0.00019178,2]
[379935476,1755443440150,-480.0,0.00019178,2]
[379935478,1755443440163,-480.0,0.00019178,2]
[379935480,1755443440178,-480.0,0.00019178,2]
[379935482,1755443440188,-480.0,0.00019178,2]
[379935484,1755443440197,-480.0,0.00019178,2]
[379935486,1755443440207,-480.0,0.00019178,2]
[379935488,1755443440217,-480.0,0.00019178,2]
[379935490,1755443440226,-480.0,0.00019178,2]
[379935492,1755443440235,-480.0,0.00019178,2]
[379935494,1755443440246,-480.0,0.00019178,2]
[379935496,1755443440255,-480.0,0.00019178,2]
[379935498,1755443440264,-480.0,0.00019178,2]
[379935499,1755443440273,-480.0,0.00019178,2]
[379935501,1755443440282,-480.0,0.00019178,2]
[379935503,1755443440292,-480.0,0.00019178,2]
[379935505,1755443440301,-480.0,0.00019178,2]
[379935507,1755443440311,-480.0,0.00019178,2]
[379935509,1755443440320,-480.0,0.00019178,2]
[379935511,1755443440329,-480.0,0.00019178,2]
[379935513,1755443440339,-480.0,0.00019178,2]
[379935515,1755443440348,-480.0,0.00019178,2]
[379935517,1755443440358,-480.0,0.00019178,2]
[379935519,1755443440367,-480.0,0.00019178,2]
[379935521,1755443440377,-480.0,0.00019178,2]
[379935523,1755443440387,-480.0,0.00019178,2]
[379935525,1755443440397,-480.0,0.00019178,2]
[379935527,1755443440407,-861.87,0.00019178,2]
[379935529,1755443440416,-460.0,0.00019178,2]
[379935531,1755443440426,-480.0,0.00019178,2]
[379935533,1755443440436,-480.0,0.00019178,2]
[379935535,1755443440446,-1422.38,0.00019178,2]
[379935537,1755443440455,-480.0,0.00019178,2]
[379935539,1755443440465,-480.0,0.00019178,2]
[379935540,1755443440475,-267.46142335,0.00019178,2]
[379935542,1755443440485,-480.0,0.00019178,2]
[379935544,1755443440495,-440.0,0.00019178,2]
[379935546,1755443440505,-460.0,0.00019178,2]
[379935548,1755443440514,-480.0,0.00019178,2]
[379935550,1755443440524,-480.0,0.00019178,2]
[379935552,1755443440533,-585.67758464,0.00019178,2]
[379935554,1755443440543,-480.0,0.00019178,2]
[379935555,1755443440552,-440.98411347,0.00019178,2]
[379935556,1755443440562,-480.0,0.00019178,2]
[379935557,1755443440572,-480.0,0.00019178,2]
[379935558,1755443440582,-490.2510739,0.00019178,2]
[379935559,1755443440591,-5000.0,0.00019178,2]
[379935560,1755443440601,-5000.0,0.00019178,2]
[379935562,1755443440611,-1770.56066734,0.00019178,2]
[379935563,1755443440620,-151.0,0.00019191,2]
[379935564,1755443440629,-451.82792563,0.00019191,2]
[379935565,1755443440638,-402.98395536,0.00019191,2]
[379935566,1755443440647,-151.0,0.00019191,2]
[379935567,1755443440657,-151.0,0.00019191,2]
[379935568,1755443440666,-1636.67041947,0.00019205,2]
[379935569,1755443440675,-500.0,0.00019258,2]
[379935570,1755443440684,-480.0,0.00019279,2]
[379935571,1755443440694,-480.0,0.00019279,2]
[379935572,1755443440703,-538.61,0.00019279,2]
[379935573,1755443440712,-480.0,0.00019279,2]
[379935574,1755443440723,-480.0,0.00019279,2]
[379935575,1755443440732,-480.0,0.00019279,2]
[379935576,1755443440741,-500.0,0.00019287,2]
[379935577,1755443440751,-480.0,0.00019287,2]
[379935578,1755443440760,-480.0,0.00019287,2]
[379935579,1755443440769,-480.0,0.00019287,2]
[379935580,1755443440778,-480.0,0.00019287,2]
[379935581,1755443440787,-480.0,0.00019287,2]
[379935582,1755443440796,-480.0,0.00019287,2]
[379935583,1755443440806,-304.770316,0.00019288,2]
[379935584,1755443440815,-480.0,0.00019288,2]
[379935585,1755443440825,-480.0,0.00019288,2]
[379935586,1755443440834,-480.0,0.00019288,2]
[379935587,1755443440843,-480.0,0.00019288,2]
[379935588,1755443440852,-480.0,0.00019288,2]
[379935589,1755443440861,-480.0,0.00019288,2]
[379935590,1755443440870,-151.0,0.00019289,2]
[379935591,1755443440879,-298.00612635,0.00019321,2]
[379935592,1755443440888,-151.0,0.00019329,2]
[379935593,1755443440898,-151.0,0.00019329,2]
[379935594,1755443440907,-151.0,0.00019329,2]
[379935595,1755443440917,-300.73025,0.00019329,2]
[379935596,1755443440926,-304.770316,0.00019329,2]
[379935597,1755443440935,-151.0,0.00019329,2]
[379935598,1755443440944,-100000.0,0.00019329,2]
[379935599,1755443440953,-150.0,0.00019351,2]
[379935600,1755443440963,-506.02925898,0.00019364,2]
[379935601,1755443440972,-266.63656726,0.00019373,2]
[379935602,1755443440982,-500.0,0.00019373,2]
[379935603,1755443440991,-366.84940194,0.00019452,2]
[379935604,1755443441001,-442.17896654,0.00019452,2]
[379935605,1755443441010,-480.0,0.00019452,2]
[379935606,1755443441019,-461.48136887,0.00019452,2]
[379935607,1755443441028,-443.43684932,0.00019452,2]
[379935608,1755443441037,-480.0,0.00019452,2]
[379935609,1755443441047,-287.29494168,0.00019452,2]
[379935610,1755443441057,-480.0,0.00019452,2]
[379935611,1755443441066,-480.0,0.00019452,2]
[379935612,1755443441075,-480.0,0.00019452,2]
[379935613,1755443441085,-463.00129816,0.00019452,2]
[379935614,1755443441094,-480.0,0.00019452,2]
[379935615,1755443441104,-480.0,0.00019452,2]
[379935616,1755443441113,-480.0,0.00019452,2]
[379935618,1755443441122,-480.0,0.00019452,2]
[379935620,1755443441132,-480.0,0.00019452,2]
[379935621,1755443441142,-480.0,0.00019452,2]
[379935623,1755443441152,-480.0,0.00019452,2]
[379935625,1755443441164,-480.0,0.00019452,2]
[379935627,1755443441176,-280.67801479,0.00019452,2]
[379935629,1755443441186,-480.0,0.00019452,2]
[379935630,1755443441196,-480.0,0.00019452,2]
[379935631,1755443441207,-480.0,0.00019452,2]
[379935632,1755443441216,-480.0,0.00019452,2]
[379935633,1755443441226,-480.0,0.00019452,2]
[379935634,1755443441236,-480.0,0.00019452,2]
[379935635,1755443441246,-480.0,0.00019452,2]
[379935636,1755443441256,-480.0,0.00019452,2]
[379935637,1755443441266,-462.86741978,0.00019452,2]
[379935638,1755443441275,-480.0,0.00019452,2]
[379935639,1755443441285,-480.0,0.00019452,2]
[379935640,1755443441294,-480.0,0.00019452,2]
[379935641,1755443441304,-492.61873808,0.00019452,2]
[379935642,1755443441313,-480.0,0.00019452,2]
[379935643,1755443441323,-480.0,0.00019452,2]
[379935644,1755443441332,-480.0,0.00019452,2]
[379935645,1755443441341,-480.0,0.00019452,2]
[379935646,1755443441351,-2752.48,0.00019452,2]
[379935647,1755443441360,-480.0,0.00019452,2]
[379935648,1755443441370,-480.0,0.00019452,2]
[379935649,1755443441379,-480.0,0.00019452,2]
[379935650,1755443441389,-480.0,0.00019452,2]
[379935651,1755443441399,-783.83,0.00019452,2]
[379935652,1755443441409,-420.0,0.00019452,2]
[379935653,1755443441418,-434.05824517,0.00019452,2]
[379935654,1755443441427,-480.0,0.00019452,2]
[379935655,1755443441436,-480.0,0.00019452,2]
[379935656,1755443441446,-480.0,0.00019452,2]
[379935657,1755443441455,-480.0,0.00019452,2]
[379935658,1755443441464,-480.0,0.00019452,2]
[379935659,1755443441474,-480.0,0.00019452,2]
[379935660,1755443441484,-480.0,0.00019452,2]
[379935661,1755443441493,-480.0,0.00019452,2]
[379935662,1755443441503,-480.0,0.00019452,2]
[379935663,1755443441512,-440.0,0.00019452,2]
[379935664,1755443441522,-440.0,0.00019452,2]
[379935665,1755443441531,-480.0,0.00019452,2]
[379935666,1755443441541,-480.0,0.00019452,2]
[379935667,1755443441550,-480.0,0.00019452,2]
[379935668,1755443441559,-550.68173824,0.00019452,2]
[379935669,1755443441569,-480.0,0.00019452,2]
[379935670,1755443441578,-480.0,0.00019452,2]
[379935671,1755443441587,-480.0,0.00019452,2]
[379935672,1755443441597,-480.0,0.00019452,2]
[379935673,1755443441606,-480.0,0.00019452,2]
[379935674,1755443441615,-480.0,0.00019452,2]
[379935675,1755443441625,-480.0,0.00019452,2]
[379935676,1755443441635,-480.0,0.00019452,2]
[379935677,1755443441645,-404.97118105,0.00019452,2]
[379935678,1755443441655,-480.0,0.00019452,2]
[379935679,1755443441664,-480.0,0.00019452,2]
[379935680,1755443441673,-1853.11,0.00019452,2]
[379935681,1755443441683,-729.75,0.00019452,2]
[379935682,1755443441692,-480.0,0.00019452,2]
[379935683,1755443441701,-516.71,0.00019452,2]
[379935684,1755443441711,-480.0,0.00019452,2]
[379935685,1755443441720,-480.0,0.00019452,2]
[379935686,1755443441730,-480.0,0.00019452,2]
[379935687,1755443441739,-480.0,0.00019452,2]
[379935688,1755443441749,-480.0,0.00019452,2]
[379935689,1755443441759,-440.0,0.00019452,2]
[379935690,1755443441768,-480.0,0.00019452,2]
[379935691,1755443441778,-480.0,0.00019452,2]
[379935692,1755443441787,-480.0,0.00019452,2]
[379935693,1755443441797,-563.43975282,0.00019452,2]
[379935694,1755443441807,-696.37,0.00019452,2]
[379935695,1755443441818,-480.0,0.00019452,2]
[379935696,1755443441975,-480.0,0.00019452,2]
[379935697,1755443441985,-480.0,0.00019452,2]
[379935698,1755443441995,-2087.54,0.00019452,2]
[379935699,1755443442005,-500.0,0.00019452,2]
[379935700,1755443442015,-480.0,0.00019452,2]
[379935701,1755443442025,-480.0,0.00019452,2]
[379935702,1755443442035,-985.04,0.00019452,2]
[379935703,1755443442045,-480.0,0.00019452,2]
[379935704,1755443442055,-480.0,0.00019452,2]
[379935705,1755443442064,-376.34343822,0.00019452,2]
[379935706,1755443442075,-480.0,0.00019452,2]
[379935707,1755443442086,-480.0,0.00019452,2]
[379935708,1755443442097,-480.0,0.00019452,2]
[379935709,1755443442107,-480.0,0.00019452,2]
[379935710,1755443442117,-480.0,0.00019452,2]
[379935711,1755443442126,-480.0,0.00019452,2]
[379935712,1755443442136,-480.0,0.00019452,2]
[379935713,1755443442145,-491.93,0.00019452,2]
[379935714,1755443442155,-480.0,0.00019452,2]
[379935715,1755443442170,-480.0,0.00019452,2]
[379935716,1755443442180,-480.0,0.00019452,2]
[379935718,1755443442189,-480.0,0.00019452,2]
[379935720,1755443442199,-480.0,0.00019452,2]
[379935722,1755443442209,-480.0,0.00019452,2]
[379935724,1755443442219,-480.0,0.00019452,2]
[379935726,1755443442229,-480.0,0.00019452,2]
[379935728,1755443442239,-480.0,0.00019452,2]
[379935730,1755443442248,-480.0,0.00019452,2]
[379935732,1755443442258,-527.31,0.00019452,2]
[379935734,1755443442268,-480.0,0.00019452,2]
[379935736,1755443442278,-480.0,0.00019452,2]
[379935738,1755443442288,-480.0,0.00019452,2]
[379935740,1755443442298,-235.13,0.00019452,2]
[379935742,1755443442309,-480.0,0.00019452,2]
[379935744,1755443442318,-480.0,0.00019452,2]
[379935746,1755443442327,-480.0,0.00019452,2]
[379935748,1755443442337,-480.0,0.00019452,2]
[379935750,1755443442347,-480.0,0.00019452,2]
[379935752,1755443442357,-480.0,0.00019452,2]
[379935754,1755443442366,-440.92363106,0.00019452,2]
[379935756,1755443442377,-480.0,0.00019452,2]
[379935758,1755443442386,-861.87,0.00019452,2]
[379935760,1755443442396,-480.0,0.00019452,2]
[379935762,1755443442406,-480.0,0.00019452,2]
[379935764,1755443442416,-1422.38,0.00019452,2]
[379935766,1755443442426,-480.0,0.00019452,2]
[379935768,1755443442435,-480.0,0.00019452,2]
[379935770,1755443442445,-480.0,0.00019452,2]
[379935772,1755443442455,-480.0,0.00019452,2]
[379935774,1755443442464,-480.0,0.00019452,2]
[379935776,1755443442475,-480.0,0.00019452,2]
[379935778,1755443442485,-151.0,0.00019465,2]
[379935780,1755443442494,-500.0,0.00019504,2]
[379935782,1755443442504,-500.0,0.00019547,2]
[379935784,1755443442514,-480.0,0.00019553,2]
[379935786,1755443442523,-480.0,0.00019553,2]
[379935788,1755443442533,-480.0,0.00019553,2]
[379935789,1755443442543,-194.01,0.00019561,2]
[379935792,1755443442552,-480.0,0.00019561,2]
[379935794,1755443442561,-480.0,0.00019561,2]
[379935796,1755443442571,-151.0,0.00019562,2]
[379935799,1755443442580,-151.0,0.00019562,2]
[379935801,1755443442589,-480.0,0.00019562,2]
[379935804,1755443442598,-480.0,0.00019562,2]
[379935806,1755443442607,-480.0,0.00019562,2]
[379935808,1755443442617,-480.0,0.00019562,2]
[379935810,1755443442626,-480.0,0.00019562,2]
[379935812,1755443442636,-480.0,0.00019562,2]
[379935814,1755443442646,-215.71995163,0.00019574,2]
[379935816,1755443442655,-160.0,0.00019574,2]
[379935818,1755443442665,-160.0,0.00019574,2]
[379935820,1755443442675,-528.48506731,0.00019574,2]
[379935822,1755443442684,-160.0,0.00019579,2]
[379935824,1755443442694,-417.15472785,0.00019579,2]
[379935826,1755443442703,-232.1512529,0.00019579,2]
[379935828,1755443442714,-160.0,0.00019579,2]
[379935830,1755443442723,-160.0,0.00019579,2]
[379935832,1755443442733,-160.0,0.00019579,2]
[379935834,1755443442743,-216.83204348,0.00019579,2]
[379935836,1755443442752,-375.77065697,0.00019579,2]
[379935838,1755443442761,-12682.46447135,0.00019579,2]
[379935840,1755443442771,-160.0,0.00019579,2]
[379935842,1755443442781,-843.71309931,0.00019579,2]
[379935844,1755443442790,-160.0,0.00019579,2]
[379935846,1755443442801,-220.75172192,0.00019682,2]
[379935848,1755443442810,-1499.65371421,0.00019682,2]
[379935850,1755443442820,-1000.0,0.00019721,2]
[379935852,1755443442829,-1000.0,0.00019721,2]
[379935854,1755443442839,-500.0,0.00019721,2]
[379935855,1755443442849,-1000.0,0.00019721,2]
[379935858,1755443442859,-1000.0,0.00019721,2]
[379935859,1755443442869,-555.06,0.00019726,2]
[379935861,1755443442879,-480.0,0.00019726,2]
[379935864,1755443442890,-552.88,0.00019726,2]
[379935865,1755443442900,-256.11629067,0.00019726,2]
[379935867,1755443442910,-480.0,0.00019726,2]
[379935869,1755443442919,-480.0,0.00019726,2]
[379935871,1755443442930,-480.0,0.00019726,2]
[379935873,1755443442941,-480.0,0.00019726,2]
[379935875,1755443442951,-480.0,0.00019726,2]
[379935878,1755443442962,-480.0,0.00019726,2]
[379935879,1755443442972,-380.0,0.00019726,2]
[379935881,1755443442982,-480.0,0.00019726,2]
[379935883,1755443442992,-480.0,0.00019726,2]
[379935885,1755443443002,-480.0,0.00019726,2]
[379935887,1755443443012,-480.0,0.00019726,2]
[379935889,1755443443022,-480.0,0.00019726,2]
[379935891,1755443443032,-480.0,0.00019726,2]
[379935893,1755443443042,-480.0,0.00019726,2]
[379935895,1755443443053,-480.0,0.00019726,2]
[379935897,1755443443063,-480.0,0.00019726,2]
[379935899,1755443443073,-480.0,0.00019726,2]
[379935901,1755443443083,-480.0,0.00019726,2]
[379935903,1755443443094,-480.0,0.00019726,2]
[379935905,1755443443104,-480.0,0.00019726,2]
[379935907,1755443443114,-480.0,0.00019726,2]
[379935909,1755443443123,-501.03367943,0.00019726,2]
[379935911,1755443443134,-2752.48,0.00019726,2]
[379935913,1755443443143,-480.0,0.00019726,2]
[379935915,1755443443153,-480.0,0.00019726,2]
[379935917,1755443443170,-480.0,0.00019726,2]
[379935919,1755443443180,-480.0,0.00019726,2]
[379935921,1755443443190,-783.83,0.00019726,2]
[379935923,1755443443200,-480.0,0.00019726,2]
[379935926,1755443443212,-480.0,0.00019726,2]
[379935928,1755443443222,-480.0,0.00019726,2]
[379935930,1755443443232,-480.0,0.00019726,2]
[379935931,1755443443244,-480.0,0.00019726,2]
[379935933,1755443443253,-480.0,0.00019726,2]
[379935935,1755443443262,-548.35,0.00019726,2]
[379935937,1755443443272,-484.61666209,0.00019726,2]
[379935939,1755443443282,-480.0,0.00019726,2]
[379935941,1755443443291,-480.0,0.00019726,2]
[379935943,1755443443301,-480.0,0.00019726,2]
[379935945,1755443443310,-400.0,0.00019726,2]
[379935947,1755443443320,-480.0,0.00019726,2]
[379935949,1755443443351,-480.0,0.00019726,2]
[379935951,1755443443363,-480.0,0.00019726,2]
[379935953,1755443443374,-480.0,0.00019726,2]
[379935955,1755443443384,-480.0,0.00019726,2]
[379935957,1755443443400,-1853.11,0.00019726,2]
[379935960,1755443443432,-729.75,0.00019726,2]
[379935962,1755443443442,-480.0,0.00019726,2]
[379935964,1755443443452,-480.0,0.00019726,2]
[379935966,1755443443462,-516.71,0.00019726,2]
[379935968,1755443443473,-480.0,0.00019726,2]
[379935970,1755443443483,-480.0,0.00019726,2]
[379935972,1755443443493,-480.0,0.00019726,2]
[379935974,1755443443503,-579.50225932,0.00019726,2]
[379935976,1755443443512,-480.0,0.00019726,2]
[379935978,1755443443523,-480.0,0.00019726,2]
[379935980,1755443443533,-696.37,0.00019726,2]
[379935982,1755443443542,-480.0,0.00019726,2]
[379935984,1755443443552,-480.0,0.00019726,2]
[379935986,1755443443561,-480.0,0.00019726,2]
[379935988,1755443443572,-2087.54,0.00019726,2]
[379935990,1755443443581,-480.0,0.00019726,2]
[379935992,1755443443591,-985.04,0.00019726,2]
[379935994,1755443443601,-480.0,0.00019726,2]
[379935996,1755443443611,-478.59774211,0.00019726,2]
[379935998,1755443443620,-480.0,0.00019726,2]
[379936000,1755443443631,-480.0,0.00019726,2]
[379936002,1755443443640,-480.0,0.00019726,2]
[379936005,1755443443651,-480.0,0.00019726,2]
[379936007,1755443443660,-480.0,0.00019726,2]
[379936009,1755443443671,-480.0,0.00019726,2]
[379936011,1755443443680,-480.0,0.00019726,2]
[379936013,1755443443691,-480.0,0.00019726,2]
[379936015,1755443443702,-480.0,0.00019726,2]
[379936017,1755443443711,-480.0,0.00019726,2]
[379936019,1755443443722,-480.0,0.00019726,2]
[379936021,1755443443731,-480.0,0.00019726,2]
[379936023,1755443443740,-480.0,0.00019726,2]
[379936025,1755443443750,-480.0,0.00019726,2]
[379936027,1755443443759,-480.0,0.00019726,2]
[379936029,1755443443768,-480.0,0.00019726,2]
[379936030,1755443443777,-480.0,0.00019726,2]
[379936032,1755443443787,-480.0,0.00019726,2]
[379936034,1755443443796,-480.0,0.00019726,2]
[379936036,1755443443806,-480.0,0.00019726,2]
[379936038,1755443443815,-480.0,0.00019726,2]
[379936040,1755443443825,-861.87,0.00019726,2]
[379936042,1755443443835,-301.15443763,0.00019726,2]
[379936044,1755443443845,-480.0,0.00019726,2]
[379936046,1755443443855,-1422.38,0.00019726,2]
[379936048,1755443443864,-480.0,0.00019726,2]
[379936050,1755443443875,-480.0,0.00019726,2]
[379936052,1755443443884,-480.0,0.00019726,2]
[379936054,1755443443894,-379.12094804,0.00019726,2]
[379936056,1755443443903,-480.0,0.00019726,2]
[379936058,1755443443913,-451.6056645,0.00019726,2]
[379936060,1755443443923,-304.770316,0.00019739,2]
[379936062,1755443443933,-151.0,0.00019739,2]
[379936064,1755443443943,-480.0,0.00019827,2]
[379936066,1755443443953,-480.0,0.00019827,2]
[379936068,1755443443963,-480.0,0.00019827,2]
[379936070,1755443443972,-151.0,0.00019835,2]
[379936072,1755443443982,-480.0,0.00019835,2]
[379936074,1755443443993,-268.81,0.00019836,2]
[379936076,1755443444002,-346.33,0.00019836,2]
[379936078,1755443444012,-480.0,0.00019836,2]
[379936080,1755443444021,-480.0,0.00019836,2]
[379936082,1755443444031,-160.0,0.0001986,2]
[379936084,1755443444041,-894.214899,0.00019863,2]
[379936086,1755443444051,-328.0,0.00019887,2]
[379936088,1755443444062,-7062.17957494,0.000199,2]
[379936090,1755443444072,-2496.54,0.00019903,3]
[379936092,1755443444081,-1248.26,0.00019903,3]
[379936094,1755443444091,-624.14,0.00019903,3]
[379936096,1755443444101,-312.06,0.00019903,3]
[379936098,1755443444111,-1000.0,0.00019921,2]
[379936100,1755443444120,-151.0,0.0002,2]
[379936102,1755443444130,-151.0,0.0002,2]
[379936104,1755443444140,-304.770316,0.0002,2]
[379936106,1755443444150,-304.770316,0.0002,2]
[379936108,1755443444161,-151.0,0.0002,2]
[379936110,1755443444178,-209.028915,0.0002,2]
[379936112,1755443444187,-480.0,0.0002,2]
[379936114,1755443444196,-480.0,0.0002,2]
[379936116,1755443444206,-480.0,0.0002,2]
[379936118,1755443444217,-480.0,0.0002,2]
[379936120,1755443444227,-480.0,0.0002,2]
[379936122,1755443444237,-480.0,0.0002,2]
[379936124,1755443444249,-480.0,0.0002,2]
[379936126,1755443444259,-480.0,0.0002,2]
[379936128,1755443444269,-480.0,0.0002,2]
[379936130,1755443444278,-480.0,0.0002,2]
[379936132,1755443444288,-480.0,0.0002,2]
[379936134,1755443444297,-480.0,0.0002,2]
[379936136,1755443444307,-480.0,0.0002,2]
[379936138,1755443444317,-480.0,0.0002,2]
[379936140,1755443444326,-480.0,0.0002,2]
[379936142,1755443444336,-480.0,0.0002,2]
[379936144,1755443444346,-480.0,0.0002,2]
[379936146,1755443444355,-480.0,0.0002,2]
[379936148,1755443444365,-440.0,0.0002,2]
[379936150,1755443444374,-2752.48,0.0002,2]
[379936152,1755443444384,-480.0,0.0002,2]
[379936154,1755443444394,-612.42808477,0.0002,2]
[379936156,1755443444403,-783.83,0.0002,2]
[379936158,1755443444412,-480.0,0.0002,2]
[379936160,1755443444421,-480.0,0.0002,2]
[379936162,1755443444431,-480.0,0.0002,2]
[379936169,1755443444489,-480.0,0.0002,2]
[379936171,1755443444499,-480.0,0.0002,2]